[Event "The Kvibergspelen 2023"]
[Site "Kviberg Park Hotel & Conference, Krutvagen 2, Gothenburg, Sweden"]
[Date "2023.09.15"]
[Round "2.3"]
[White "Larkin, Vladyslav"]
[Black "Bjorkman, Filip"]
[Result "1-0"]
[TimeControl "15 minutes + 5 seconds per move from move one (Round 1 - 4) / 90 minutes + 30 seconds per move from move one (Round 5 - 8)"]
[WhiteTitle "IM"]
[WhiteFideId "14152894"]
[BlackFideId "1734970"]
[WhiteElo "2464"]
[BlackElo "2077"]

1. e4 {[%clk 00:15:08]} c5 {[%clk 00:15:08]} {[%emt 00:00:02]} 2. Nf3 {[%clk
00:15:12]} {[%emt 00:00:01]} Nc6 {[%clk 00:15:12]} {[%emt 00:00:01]} 3. Bb5
{[%clk 00:15:16]} {[%emt 00:00:04]} g6 {[%clk 00:15:14]} 4. Bxc6 {[%clk
00:15:19]} {[%emt 00:00:03]} dxc6 {[%clk 00:15:17]} {[%emt 00:00:01]} 5. h3
{[%clk 00:15:22]} {[%emt 00:00:01]} e5 {[%clk 00:15:08]} {[%emt 00:00:14]} 6.
d3 {[%clk 00:15:24]} {[%emt 00:00:04]} Bg7 {[%clk 00:15:11]} {[%emt 00:00:02]}
7. Nc3 {[%clk 00:15:28]} {[%emt 00:00:01]} Ne7 {[%clk 00:15:09]} {[%emt
00:00:07]} 8. Be3 {[%clk 00:15:31]} {[%emt 00:00:02]} b6 {[%clk 00:15:13]}
{[%emt 00:00:02]} 9. Qd2 {[%clk 00:15:34]} {[%emt 00:00:02]} h5 {[%clk
00:14:11]} {[%emt 00:01:06]} 10. a3 {[%clk 00:15:22]} {[%emt 00:00:17]} Be6
{[%clk 00:14:11]} {[%emt 00:00:04]} 11. Ng5 {[%clk 00:15:17]} {[%emt 00:00:10]}
Qd7 {[%clk 00:14:12]} {[%emt 00:00:05]} 12. O-O {[%clk 00:14:25]} {[%emt
00:00:57]} O-O {[%clk 00:14:12]} {[%emt 00:00:04]} 13. f4 {[%clk 00:14:09]}
{[%emt 00:00:21]} exf4 {[%clk 00:14:15]} {[%emt 00:00:02]} 14. Bxf4 {[%clk
00:14:12]} {[%emt 00:00:02]} Rad8 {[%clk 00:13:34]} {[%emt 00:00:47]} 15. e5
{[%clk 00:13:30]} {[%emt 00:00:47]} Bf5 {[%clk 00:13:26]} {[%emt 00:00:12]} 16.
Nce4 {[%clk 00:12:15]} {[%emt 00:01:20]} Qd4+ {[%clk 00:09:05]} {[%emt
00:04:27]} 17. Kh1 {[%clk 00:12:16]} {[%emt 00:00:04]} Bxe4 {[%clk 00:08:23]}
{[%emt 00:00:47]} 18. Nxe4 {[%clk 00:12:11]} {[%emt 00:00:10]} c4 {[%clk
00:07:48]} {[%emt 00:00:40]} 19. Nf6+ {[%clk 00:11:29]} {[%emt 00:00:46]} Kh8
{[%clk 00:07:43]} {[%emt 00:00:10]} 20. Bh6 {[%clk 00:11:01]} {[%emt 00:00:35]}
Qxe5 {[%clk 00:06:52]} {[%emt 00:00:56]} 21. Rae1 {[%clk 00:11:04]} Qc5 {[%clk
00:06:56]} {[%emt 00:00:01]} 22. Bxg7+ {[%clk 00:09:59]} {[%emt 00:01:10]} Kxg7
{[%clk 00:06:59]} {[%emt 00:00:02]} 23. Qc3 {[%clk 00:09:54]} {[%emt 00:00:10]}
Kh6 {[%clk 00:06:26]} {[%emt 00:00:37]} 24. Re5 {[%clk 00:09:57]} {[%emt
00:00:03]} Nd5 {[%clk 00:05:46]} {[%emt 00:00:45]} 25. Qd2+ {[%clk 00:09:59]}
{[%emt 00:00:03]} Kg7 {[%clk 00:05:49]} {[%emt 00:00:02]} 26. Nxh5+ {[%clk
00:09:55]} {[%emt 00:00:09]} Kh7 {[%clk 00:05:51]} {[%emt 00:00:02]} 27. Nf6+
{[%clk 00:09:58]} {[%emt 00:00:03]} Kg7 {[%clk 00:05:52]} {[%emt 00:00:05]} 28.
Qg5 {[%clk 00:08:30]} {[%emt 00:01:32]} Qd6 {[%clk 00:04:59]} {[%emt 00:00:58]}
29. Nh5+ {[%clk 00:06:11]} {[%emt 00:02:24]} Kh7 {[%clk 00:04:43]} {[%emt
00:00:21]} 30. Ref5 {[%clk 00:06:13]} {[%emt 00:00:03]} Qe7 {[%clk 00:02:21]}
{[%emt 00:02:28]} 31. Rxd5 {[%clk 00:05:35]} {[%emt 00:00:43]} Qxg5 {[%clk
00:02:24]} {[%emt 00:00:01]} 32. Rxg5 {[%clk 00:05:38]} {[%emt 00:00:03]} gxh5
{[%clk 00:02:28]} {[%emt 00:00:01]} 33. dxc4 {[%clk 00:05:41]} {[%emt
00:00:02]} Rd2 {[%clk 00:01:30]} {[%emt 00:01:02]} 34. Rf4 {[%clk 00:05:31]}
{[%emt 00:00:15]} Rxc2 {[%clk 00:01:18]} {[%emt 00:00:18]} 35. Rh4 {[%clk
00:05:33]} {[%emt 00:00:02]} 1-0

[Event "The Kvibergspelen 2023"]
[Site "Kviberg Park Hotel & Conference, Krutvagen 2, Gothenburg, Sweden"]
[Date "2023.09.15"]
[Round "2.4"]
[White "Wahlund, Max"]
[Black "Seo, Jung Min"]
[Result "0-1"]
[TimeControl "15 minutes + 5 seconds per move from move one (Round 1 - 4) / 90 minutes + 30 seconds per move from move one (Round 5 - 8)"]
[WhiteTitle "CM"]
[BlackTitle "IM"]
[WhiteFideId "1741861"]
[BlackFideId "1734687"]
[WhiteElo "2065"]
[BlackElo "2462"]

1. d4 {[%clk 00:15:07]} Nf6 {[%emt 00:00:01]} 2. c4 {[%clk 00:15:11]} e6 {[%clk
00:15:14]} {[%emt 00:00:04]} 3. g3 {[%clk 00:15:15]} d5 {[%clk 00:15:04]}
{[%emt 00:00:13]} 4. Bg2 {[%clk 00:15:17]} {[%emt 00:00:01]} dxc4 {[%clk
00:14:56]} {[%emt 00:00:14]} 5. Nf3 {[%clk 00:15:13]} {[%emt 00:00:09]} c6
{[%clk 00:14:59]} {[%emt 00:00:02]} 6. Ne5 {[%clk 00:14:55]} {[%emt 00:00:24]}
Bb4+ {[%clk 00:15:03]} {[%emt 00:00:01]} 7. Nc3 {[%clk 00:14:55]} {[%emt
00:00:04]} Nd5 {[%clk 00:15:02]} {[%emt 00:00:06]} 8. Bd2 {[%clk 00:14:38]}
{[%emt 00:00:22]} Nb6 {[%clk 00:14:17]} {[%emt 00:00:50]} 9. e3 {[%clk
00:14:06]} {[%emt 00:00:37]} N8d7 {[%clk 00:14:19]} {[%emt 00:00:03]} 10. Nxd7
{[%clk 00:13:57]} {[%emt 00:00:15]} Bxd7 {[%clk 00:14:13]} {[%emt 00:00:11]} 11.
O-O {[%clk 00:13:57]} {[%emt 00:00:04]} O-O {[%clk 00:13:32]} {[%emt 00:00:47]}
12. Rc1 {[%clk 00:13:56]} {[%emt 00:00:06]} Qe7 {[%clk 00:13:33]} {[%emt
00:00:04]} 13. a3 {[%clk 00:13:23]} {[%emt 00:00:37]} Ba5 {[%clk 00:12:34]}
{[%emt 00:01:03]} 14. Ne4 {[%clk 00:13:15]} {[%emt 00:00:14]} Bxd2 {[%clk
00:12:38]} {[%emt 00:00:02]} 15. Nxd2 {[%clk 00:13:08]} {[%emt 00:00:12]} e5
{[%clk 00:12:38]} {[%emt 00:00:04]} 16. Nxc4 {[%clk 00:13:03]} {[%emt
00:00:10]} Nxc4 {[%clk 00:12:27]} {[%emt 00:00:17]} 17. Rxc4 {[%clk 00:13:05]}
{[%emt 00:00:02]} Be6 {[%clk 00:12:18]} {[%emt 00:00:14]} 18. Rc5 {[%clk
00:09:08]} {[%emt 00:04:02]} exd4 {[%clk 00:12:13]} {[%emt 00:00:10]} 19. Qxd4
{[%clk 00:09:05]} {[%emt 00:00:08]} Rad8 {[%clk 00:12:02]} {[%emt 00:00:16]} 20.
Qc3 {[%clk 00:09:02]} {[%emt 00:00:08]} Rd7 {[%clk 00:11:57]} {[%emt 00:00:10]}
21. Bf3 {[%clk 00:08:16]} {[%emt 00:00:51]} Rfd8 {[%clk 00:11:53]} {[%emt
00:00:09]} 22. h4 {[%clk 00:08:06]} {[%emt 00:00:15]} Rd3 {[%clk 00:11:37]}
{[%emt 00:00:21]} 23. Qc1 {[%clk 00:08:10]} {[%emt 00:00:02]} Qf6 {[%clk
00:10:15]} {[%emt 00:01:26]} 24. Kg2 {[%clk 00:07:48]} {[%emt 00:00:27]} Bh3+
{[%clk 00:05:40]} {[%emt 00:04:41]} 25. Kxh3 {[%clk 00:07:51]} {[%emt
00:00:02]} Qxf3 {[%clk 00:05:44]} {[%emt 00:00:01]} 26. Qb1 {[%clk 00:04:21]}
{[%emt 00:03:35]} Rd1 {[%clk 00:05:14]} {[%emt 00:00:34]} 27. Rc1 {[%clk
00:04:24]} {[%emt 00:00:02]} R1d2 {[%clk 00:05:12]} {[%emt 00:00:07]} 28. Rc2
{[%clk 00:04:15]} {[%emt 00:00:15]} Qf5+ {[%clk 00:05:11]} {[%emt 00:00:05]}
0-1

[Event "The Kvibergspelen 2023"]
[Site "Kviberg Park Hotel & Conference, Krutvagen 2, Gothenburg, Sweden"]
[Date "2023.09.15"]
[Round "2.5"]
[White "Sivuk, Vitaly"]
[Black "Joensson, Oscar"]
[Result "1-0"]
[TimeControl "15 minutes + 5 seconds per move from move one (Round 1 - 4) / 90 minutes + 30 seconds per move from move one (Round 5 - 8)"]
[WhiteTitle "GM"]
[WhiteFideId "14116502"]
[BlackFideId "1729977"]
[WhiteElo "2461"]
[BlackElo "2060"]

1. d4 {[%clk 00:15:07]} {[%emt 00:00:02]} Nf6 {[%clk 00:15:08]} {[%emt
00:00:04]} 2. c4 {[%clk 00:15:10]} {[%emt 00:00:04]} e6 {[%clk 00:15:06]}
{[%emt 00:00:05]} 3. Nf3 {[%clk 00:15:13]} {[%emt 00:00:04]} d5 {[%clk
00:15:08]} {[%emt 00:00:01]} 4. Nc3 {[%clk 00:15:16]} {[%emt 00:00:02]} Be7
{[%clk 00:15:10]} {[%emt 00:00:02]} 5. Bg5 {[%clk 00:15:15]} {[%emt 00:00:06]}
O-O {[%clk 00:15:10]} {[%emt 00:00:07]} 6. e3 {[%clk 00:15:18]} {[%emt
00:00:01]} h6 {[%clk 00:15:05]} {[%emt 00:00:10]} 7. Bf4 {[%clk 00:15:20]}
{[%emt 00:00:02]} c6 {[%clk 00:12:43]} {[%emt 00:02:28]} 8. g4 {[%clk
00:15:18]} {[%emt 00:00:06]} Ne4 {[%clk 00:11:51]} {[%emt 00:00:58]} 9. Bd3
{[%clk 00:14:53]} {[%emt 00:00:30]} Nxc3 {[%clk 00:08:38]} {[%emt 00:03:18]} 10.
bxc3 {[%clk 00:14:56]} {[%emt 00:00:02]} dxc4 {[%clk 00:08:42]} {[%emt
00:00:02]} 11. Bxc4 {[%clk 00:14:57]} {[%emt 00:00:04]} b6 {[%clk 00:08:45]}
{[%emt 00:00:01]} 12. Bd3 {[%clk 00:14:27]} {[%emt 00:00:34]} Bb7 {[%clk
00:07:32]} {[%emt 00:01:20]} 13. Rg1 {[%clk 00:13:23]} {[%emt 00:01:08]} Bg5
{[%clk 00:04:16]} {[%emt 00:03:21]} 14. Bxg5 {[%clk 00:13:04]} {[%emt
00:00:24]} hxg5 {[%clk 00:04:19]} {[%emt 00:00:03]} 15. h4 {[%clk 00:13:07]}
gxh4 {[%clk 00:04:02]} {[%emt 00:00:23]} 16. g5 {[%clk 00:13:10]} {[%emt
00:00:01]} g6 {[%clk 00:04:00]} {[%emt 00:00:08]} 17. Ne5 {[%clk 00:12:53]}
{[%emt 00:00:22]} Kg7 {[%clk 00:03:50]} {[%emt 00:00:16]} 18. Qf3 {[%clk
00:12:00]} {[%emt 00:00:57]} Qe7 {[%clk 00:03:42]} {[%emt 00:00:13]} 19. Be4
{[%clk 00:11:54]} {[%emt 00:00:10]} Nd7 {[%clk 00:03:28]} {[%emt 00:00:20]} 20.
Nxd7 {[%clk 00:11:43]} {[%emt 00:00:16]} Qxd7 {[%clk 00:03:27]} {[%emt
00:00:07]} 21. Qf6+ {[%clk 00:11:45]} {[%emt 00:00:02]} Kg8 {[%clk 00:03:29]}
{[%emt 00:00:03]} 22. Rh1 {[%clk 00:11:40]} {[%emt 00:00:10]} Qd8 {[%clk
00:03:12]} {[%emt 00:00:22]} 23. Rxh4 {[%clk 00:11:42]} {[%emt 00:00:04]} Qxf6
{[%clk 00:03:12]} {[%emt 00:00:05]} 24. gxf6 {[%clk 00:11:44]} {[%emt
00:00:01]} e5 {[%clk 00:01:31]} {[%emt 00:01:47]} 25. O-O-O {[%clk 00:11:45]}
{[%emt 00:00:03]} 1-0

[Event "The Kvibergspelen 2023"]
[Site "Kviberg Park Hotel & Conference, Krutvagen 2, Gothenburg, Sweden"]
[Date "2023.09.15"]
[Round "2.6"]
[White "Eriksson, Kristian"]
[Black "Golubka, Petro"]
[Result "0-1"]
[TimeControl "15 minutes + 5 seconds per move from move one (Round 1 - 4) / 90 minutes + 30 seconds per move from move one (Round 5 - 8)"]
[BlackTitle "GM"]
[WhiteFideId "1705172"]
[BlackFideId "14114224"]
[WhiteElo "2038"]
[BlackElo "2439"]

1. e4 {[%clk 00:15:07]} {[%emt 00:00:03]} c5 {[%clk 00:15:08]} {[%emt
00:00:03]} 2. Nf3 {[%clk 00:15:08]} {[%emt 00:00:04]} d6 {[%clk 00:15:10]}
{[%emt 00:00:01]} 3. d4 {[%clk 00:15:08]} {[%emt 00:00:07]} cxd4 {[%clk
00:15:13]} {[%emt 00:00:01]} 4. Nxd4 {[%clk 00:15:11]} {[%emt 00:00:02]} Nf6
{[%clk 00:15:14]} {[%emt 00:00:05]} 5. Nc3 {[%clk 00:15:12]} {[%emt 00:00:02]}
a6 {[%clk 00:15:16]} {[%emt 00:00:05]} 6. Bg5 {[%clk 00:15:06]} {[%emt
00:00:09]} e6 {[%clk 00:15:19]} {[%emt 00:00:03]} 7. Qf3 {[%clk 00:14:58]}
{[%emt 00:00:12]} Nbd7 {[%clk 00:15:21]} {[%emt 00:00:04]} 8. O-O-O {[%clk
00:14:47]} {[%emt 00:00:16]} h6 {[%clk 00:15:24]} {[%emt 00:00:02]} 9. Bd2
{[%clk 00:13:29]} {[%emt 00:01:21]} Qc7 {[%clk 00:15:20]} {[%emt 00:00:10]} 10.
Qg3 {[%clk 00:12:36]} {[%emt 00:00:58]} Nc5 {[%clk 00:15:00]} {[%emt 00:00:26]}
11. Bd3 {[%clk 00:12:07]} {[%emt 00:00:34]} b5 {[%clk 00:14:40]} {[%emt
00:00:26]} 12. Rhe1 {[%clk 00:11:48]} {[%emt 00:00:22]} Bb7 {[%clk 00:14:04]}
{[%emt 00:00:42]} 13. Kb1 {[%clk 00:10:38]} {[%emt 00:01:15]} g5 {[%clk
00:13:26]} {[%emt 00:00:43]} 14. f3 {[%clk 00:09:31]} {[%emt 00:01:12]} Be7
{[%clk 00:12:27]} {[%emt 00:01:04]} 15. a3 {[%clk 00:09:07]} {[%emt 00:00:30]}
Nfd7 {[%clk 00:10:19]} {[%emt 00:02:13]} 16. Be3 {[%clk 00:07:20]} {[%emt
00:01:51]} Bc6 {[%clk 00:09:55]} {[%emt 00:00:29]} 17. Nb3 {[%clk 00:06:20]}
{[%emt 00:01:05]} Nxb3 {[%clk 00:09:28]} {[%emt 00:00:31]} 18. cxb3 {[%clk
00:06:22]} {[%emt 00:00:04]} b4 {[%clk 00:09:13]} {[%emt 00:00:21]} 19. axb4
{[%clk 00:05:56]} {[%emt 00:00:30]} Qb7 {[%clk 00:09:11]} {[%emt 00:00:07]} 20.
Bc2 {[%clk 00:05:26]} {[%emt 00:00:34]} Qxb4 {[%clk 00:09:05]} {[%emt
00:00:12]} 21. Bd4 {[%clk 00:04:29]} {[%emt 00:01:02]} Rg8 {[%clk 00:08:44]}
{[%emt 00:00:26]} 22. Qh3 {[%clk 00:04:14]} {[%emt 00:00:20]} e5 {[%clk
00:07:33]} {[%emt 00:01:17]} 23. Be3 {[%clk 00:03:58]} {[%emt 00:00:20]} Rg6
{[%clk 00:07:18]} {[%emt 00:00:20]} 24. Nd5 {[%clk 00:03:35]} {[%emt 00:00:27]}
Qb7 {[%clk 00:07:16]} {[%emt 00:00:07]} 25. Rd2 {[%clk 00:02:41]} {[%emt
00:01:00]} a5 {[%clk 00:06:52]} {[%emt 00:00:30]} 26. Red1 {[%clk 00:02:10]}
{[%emt 00:00:35]} Bd8 {[%clk 00:06:07]} {[%emt 00:00:50]} 27. Nc3 {[%clk
00:01:32]} {[%emt 00:00:43]} Be7 {[%clk 00:06:05]} {[%emt 00:00:07]} 28. Nd5
{[%clk 00:01:28]} {[%emt 00:00:09]} Rb8 {[%clk 00:05:58]} {[%emt 00:00:11]} 29.
Qf5 {[%clk 00:00:57]} {[%emt 00:00:37]} a4 {[%clk 00:05:45]} {[%emt 00:00:18]}
30. Nxe7 {[%clk 00:00:43]} {[%emt 00:00:19]} Kxe7 {[%clk 00:05:43]} {[%emt
00:00:07]} 31. Rd3 {[%clk 00:00:45]} {[%emt 00:00:04]} Rf6 {[%clk 00:05:24]}
{[%emt 00:00:24]} 32. Qh3 {[%clk 00:00:42]} {[%emt 00:00:07]} Nc5 {[%clk
00:04:54]} {[%emt 00:00:35]} 33. Bxc5 {[%clk 00:00:43]} {[%emt 00:00:05]} dxc5
{[%clk 00:04:56]} {[%emt 00:00:03]} 34. Qg3 {[%clk 00:00:38]} {[%emt 00:00:10]}
Re6 {[%clk 00:04:45]} {[%emt 00:00:15]} 35. Rc3 {[%clk 00:00:27]} {[%emt
00:00:16]} c4 {[%clk 00:04:33]} {[%emt 00:00:18]} 36. Rxc4 {[%clk 00:00:22]}
{[%emt 00:00:10]} axb3 {[%clk 00:04:36]} {[%emt 00:00:02]} 37. Bd3 {[%clk
00:00:15]} {[%emt 00:00:12]} Qa6 {[%clk 00:03:56]} {[%emt 00:00:44]} 38. Kc1
{[%clk 00:00:13]} {[%emt 00:00:07]} Bb5 {[%clk 00:02:46]} {[%emt 00:01:15]} 39.
Rc7+ {[%clk 00:00:14]} {[%emt 00:00:05]} Kf8 {[%clk 00:02:25]} {[%emt
00:00:26]} 40. Bb1 {[%clk 00:00:12]} {[%emt 00:00:07]} Rc8 {[%clk 00:02:05]}
{[%emt 00:00:24]} 41. Rxc8+ {[%clk 00:00:07]} {[%emt 00:00:10]} Qxc8+ {[%clk
00:02:07]} {[%emt 00:00:04]} 42. Kd2 {[%clk 00:00:11]} {[%emt 00:00:01]} Qc5
{[%clk 00:01:55]} {[%emt 00:00:14]} 43. Rc1 {[%clk 00:00:08]} {[%emt 00:00:10]}
Rd6+ {[%clk 00:01:51]} {[%emt 00:00:09]} 0-1

[Event "The Kvibergspelen 2023"]
[Site "Kviberg Park Hotel & Conference, Krutvagen 2, Gothenburg, Sweden"]
[Date "2023.09.15"]
[Round "2.7"]
[White "Akesson, Ralf"]
[Black "Hagevi, Vidar"]
[Result "1-0"]
[TimeControl "15 minutes + 5 seconds per move from move one (Round 1 - 4) / 90 minutes + 30 seconds per move from move one (Round 5 - 8)"]
[WhiteTitle "GM"]
[WhiteFideId "1700120"]
[BlackFideId "1767526"]
[WhiteElo "2410"]
[BlackElo "2037"]

1. Nf3 {[%clk 00:15:08]} {[%emt 00:00:02]} Nf6 {[%clk 00:15:08]} {[%emt
00:00:03]} 2. c4 {[%clk 00:15:09]} {[%emt 00:00:04]} e6 {[%clk 00:15:07]}
{[%emt 00:00:05]} 3. Nc3 {[%clk 00:15:10]} {[%emt 00:00:05]} d5 {[%clk
00:15:00]} {[%emt 00:00:12]} 4. d4 {[%clk 00:15:12]} {[%emt 00:00:03]} Bb4
{[%clk 00:15:01]} {[%emt 00:00:04]} 5. Bg5 {[%clk 00:15:10]} {[%emt 00:00:07]}
h6 {[%clk 00:14:39]} {[%emt 00:00:26]} 6. Bxf6 {[%clk 00:15:12]} {[%emt
00:00:03]} Qxf6 {[%clk 00:13:59]} {[%emt 00:00:45]} 7. e3 {[%clk 00:15:11]}
{[%emt 00:00:06]} O-O {[%clk 00:13:38]} {[%emt 00:00:27]} 8. Rc1 {[%clk
00:15:13]} {[%emt 00:00:03]} c6 {[%clk 00:12:59]} {[%emt 00:00:44]} 9. a3
{[%clk 00:15:06]} {[%emt 00:00:13]} Bd6 {[%clk 00:13:02]} {[%emt 00:00:02]} 10.
e4 {[%clk 00:14:56]} {[%emt 00:00:13]} Bf4 {[%clk 00:11:57]} {[%emt 00:01:10]}
11. e5 {[%clk 00:14:36]} {[%emt 00:00:25]} Qd8 {[%clk 00:11:24]} {[%emt
00:00:38]} 12. Rc2 {[%clk 00:14:33]} {[%emt 00:00:08]} dxc4 {[%clk 00:10:59]}
{[%emt 00:00:30]} 13. Bxc4 {[%clk 00:14:14]} {[%emt 00:00:24]} c5 {[%clk
00:08:50]} {[%emt 00:02:14]} 14. d5 {[%clk 00:12:38]} {[%emt 00:01:41]} Qa5
{[%clk 00:08:04]} {[%emt 00:00:52]} 15. g3 {[%clk 00:11:51]} {[%emt 00:00:52]}
exd5 {[%clk 00:07:41]} {[%emt 00:00:28]} 16. Bxd5 {[%clk 00:11:31]} {[%emt
00:00:25]} Bg5 {[%clk 00:07:22]} {[%emt 00:00:24]} 17. Nxg5 {[%clk 00:11:18]}
{[%emt 00:00:18]} hxg5 {[%clk 00:07:24]} {[%emt 00:00:02]} 18. O-O {[%clk
00:10:33]} {[%emt 00:00:50]} Nc6 {[%clk 00:05:59]} {[%emt 00:01:30]} 19. Qh5
{[%clk 00:08:32]} {[%emt 00:02:06]} Nd4 {[%clk 00:05:02]} {[%emt 00:01:03]} 20.
Ne4 {[%clk 00:07:59]} {[%emt 00:00:37]} Bf5 {[%clk 00:02:36]} {[%emt 00:02:32]}
21. Rxc5 {[%clk 00:07:41]} {[%emt 00:00:23]} Qa6 {[%clk 00:01:31]} {[%emt
00:01:10]} 22. Nd6 {[%clk 00:06:36]} {[%emt 00:01:10]} g6 {[%clk 00:00:27]}
{[%emt 00:01:09]} 23. Qxg5 {[%clk 00:04:26]} {[%emt 00:02:14]} Be6 {[%clk
00:00:30]} {[%emt 00:00:02]} 24. Bg2 {[%clk 00:04:09]} {[%emt 00:00:23]} Rad8
{[%clk 00:00:22]} {[%emt 00:00:11]} 25. h4 {[%clk 00:03:56]} {[%emt 00:00:19]}
Bh3 {[%clk 00:00:07]} {[%emt 00:00:21]} 26. Qe3 {[%clk 00:03:19]} {[%emt
00:00:41]} Bxg2 {[%clk 00:00:10]} {[%emt 00:00:02]} 27. Kxg2 {[%clk 00:03:22]}
{[%emt 00:00:02]} b6 {[%clk 00:00:09]} {[%emt 00:00:07]} 28. Rc3 {[%clk
00:03:08]} {[%emt 00:00:19]} Ne6 {[%clk 00:00:06]} {[%emt 00:00:08]} 29. h5
{[%clk 00:03:03]} {[%emt 00:00:09]} Kg7 {[%clk 00:00:08]} {[%emt 00:00:04]} 30.
h6+ {[%clk 00:02:57]} {[%emt 00:00:10]} Kh7 {[%clk 00:00:11]} {[%emt 00:00:02]}
31. Ne4 {[%clk 00:03:01]} {[%emt 00:00:02]} Qb7 {[%clk 00:00:14]} {[%emt
00:00:03]} 32. Qf3 {[%clk 00:03:00]} {[%emt 00:00:05]} Qe7 {[%clk 00:00:10]}
{[%emt 00:00:09]} 33. Nf6+ {[%clk 00:02:57]} {[%emt 00:00:07]} Kh8 {[%clk
00:00:14]} {[%emt 00:00:02]} 34. Rfc1 {[%clk 00:02:50]} {[%emt 00:00:12]} Ng5
{[%clk 00:00:14]} {[%emt 00:00:04]} 35. Qc6 {[%clk 00:02:41]} {[%emt 00:00:14]}
Qxe5 {[%clk 00:00:10]} {[%emt 00:00:10]} 36. Nd7 {[%clk 00:02:20]} {[%emt
00:00:26]} Qf5 {[%clk 00:00:09]} {[%emt 00:00:06]} 37. Nxf8 {[%clk 00:02:18]}
{[%emt 00:00:07]} Rd2 {[%clk 00:00:10]} {[%emt 00:00:04]} 38. Nxg6+ {[%clk
00:02:16]} {[%emt 00:00:06]} Kh7 {[%clk 00:00:11]} {[%emt 00:00:04]} 39. Nf4
{[%clk 00:02:13]} {[%emt 00:00:09]} Ne4 {[%clk 00:00:06]} {[%emt 00:00:10]} 40.
Rf3 {[%clk 00:02:06]} {[%emt 00:00:11]} 1-0